bitfinex/quotes_ETHUSD_20250406
["timestamp","ask_amount","ask_price","bid_price","bid_amount"]
[1743904897746,0.1,1812.9,1812.8,6.29844846]
[1743904898145,0.1,1812.9,1812.8,6.24329933]
[1743904898663,0.1,1812.9,1812.8,6.29844569]
[1743904898876,6.02,1813.5,1813.4,3.86015]
[1743904899108,3.8217,1813.6,1813.5,3.85993]
[1743904900219,3.8217,1813.6,1813.4,3.86015]
[1743904900403,8.03208926,1813.6,1813.3,3.86034]
[1743904900767,8.44768406,1813.6,1813.4,3.86015]
[1743904901108,8.44768406,1813.6,1813.3,3.86025]
[1743904901415,8.44768406,1813.6,1813.4,3.86014]
[1743904902513,8.44768406,1813.6,1813.4,7.72017]
[1743904903773,8.44768406,1813.6,1813.4,3.86003]
[1743904906817,8.44768406,1813.6,1813.3,3.86036]
[1743904907010,8.44768406,1813.6,1813.3,7.7206]
[1743904907212,8.44768406,1813.6,1813.4,3.86014]
[1743904907617,8.44768406,1813.6,1813.3,3.86024]
[1743904907825,8.44768406,1813.6,1813.3,7.72052]
[1743904908020,8.44768406,1813.6,1813.3,3.86024]
[1743904908320,4.21038926,1813.4,1813.2,3.86056]
[1743904908531,0.7217,1813.3,1813.2,3.86056]
[1743904915827,0.7217,1813.3,1813.1,3.86078]
[1743904916132,0.7217,1813.3,1813.0,7.72188]
[1743904916939,4.21038926,1813.2,1813.0,3.86088]
[1743904918041,4.21038926,1813.2,1812.9,7.72231]
[1743904918210,4.21038926,1813.2,1812.9,7.72221]
[1743904920100,4.21038926,1813.2,1813.0,3.86098]
[1743904923932,4.21038926,1813.2,1813.0,3.86085]
[1743904924118,4.21038926,1813.2,1813.0,4.69335]
[1743904925003,0.7217,1813.3,1813.1,3.86079]
[1743904926003,4.21038926,1813.2,1812.9,3.91634428]
[1743904926204,4.21038926,1813.2,1812.9,3.86119]
[1743904926408,4.21038926,1813.0,1812.7,3.86149]
[1743904926616,0.7217,1812.9,1812.8,0.17254352]
[1743904927013,0.7217,1812.7,1812.6,5.25482932]
[1743904927347,4.93208926,1812.7,1812.6,5.25482932]
[1743904927707,3.2499999,1812.7,1812.6,5.25482932]
[1743904929819,4.93562,1812.7,1812.6,5.25482932]
[1743904930225,5.35760058,1812.7,1812.6,5.25482932]
[1743904930429,10.74615164,1812.7,1812.6,5.25482932]
[1743904932449,19.04445164,1812.7,1812.6,5.25482932]
[1743904932755,19.76615164,1812.7,1812.6,5.25482932]
[1743904933921,19.76615164,1812.7,1812.6,3.46212932]
[1743904934251,0.7217,1812.0,1811.8,3.86356]
[1743904934447,4.93562,1812.0,1811.7,3.86376]
[1743904935167,4.21392,1811.8,1811.6,3.86396]
[1743904935371,0.7217,1811.7,1811.4,3.8644]
[1743904935576,4.21392,1811.6,1811.3,3.86445]
[1743904935870,4.21392,1811.4,1811.2,3.86483]
[1743904936249,4.93562,1811.4,1811.1,3.96504]
[1743904936449,4.93562,1811.4,1811.2,3.86482]
[1743904936986,5.429182,1811.4,1811.1,0.1]
[1743904937292,4.21392,1811.2,1811.1,0.1]
[1743904937873,4.63736894,1811.2,1811.1,0.1]
[1743904938554,5.18736894,1811.2,1811.1,0.1]
[1743904938758,6.42780583,1811.2,1811.1,0.1]
[1743904938961,13.29264583,1811.2,1811.1,0.1]
[1743904939692,9.42780583,1811.2,1811.1,0.1]
[1743904939898,7.63736894,1811.2,1811.1,0.1]
[1743904940476,8.35906894,1811.2,1811.1,0.1]
[1743904940783,12.22390894,1811.2,1811.1,0.1]
[1743904941364,8.35906894,1811.2,1811.1,0.1]
[1743904941758,12.22390894,1811.2,1811.1,0.1]
[1743904942065,24.61669183,1811.2,1811.1,0.1]
[1743904943352,28.61669183,1811.2,1811.1,0.1]
[1743904943563,24.40277183,1811.2,1811.1,0.1]
[1743904944380,19.98793183,1811.2,1811.1,0.1]
[1743904944586,14.65736894,1811.2,1811.1,3.96505]
[1743904944780,10.23392,1811.2,1811.1,3.96505]
[1743904944988,6.02,1811.2,1811.1,4.73485]
[1743904945479,4.21392,1811.5,1811.4,3.86436]
[1743904945804,11.21392,1811.5,1811.4,3.86436]
[1743904946788,6.02,1811.6,1811.4,3.86436]
[1743904946954,6.02,1811.6,1811.4,7.72872]
[1743904947482,9.02,1811.6,1811.5,3.8642]
[1743904947683,9.02,1811.6,1811.5,4.634]
[1743904948981,3.0,1811.7,1811.6,3.86398]
[1743904949877,6.02,1811.8,1811.7,3.86377]
[1743904950288,9.02,1811.8,1811.7,3.86377]
[1743904951055,9.02,1811.8,1811.6,3.86398]
[1743904951268,4.21392,1811.7,1811.5,4.63399]
[1743904951651,4.21392,1811.7,1811.5,7.72824]
[1743904952169,4.21392,1811.7,1811.6,3.86398]
[1743904952781,9.02,1811.8,1811.7,3.86377]
[1743904953183,9.02,1811.8,1811.6,3.86398]
[1743904953458,9.02,1811.8,1811.5,3.86406]
[1743904953459,4.21392,1811.7,1811.5,3.86406]
[1743904954790,4.21392,1811.7,1811.5,3.86404]
[1743904955200,4.21392,1811.7,1811.5,7.72814]
[1743904955378,4.21392,1811.7,1811.6,3.86398]
[1743904955903,14.557312,1811.8,1811.6,3.86398]
[1743904956069,13.23392,1811.8,1811.6,3.86398]
[1743904956270,13.23392,1811.8,1811.5,3.86404]
[1743904956499,4.21392,1811.6,1811.4,3.8644]
[1743904956703,4.21392,1811.6,1811.5,3.8642]
[1743904957299,4.21392,1811.6,1811.4,3.8644]
[1743904957466,4.21392,1811.6,1811.4,3.86426]
[1743904957876,4.21392,1811.6,1811.4,7.72852]
[1743904958100,4.21392,1811.6,1811.4,3.86426]
[1743904958299,7.21392,1811.6,1811.5,3.8642]
[1743904959770,7.21392,1811.6,1811.4,3.86426]
[1743904960203,8.321691,1811.6,1811.3,4.63441]
[1743904960506,8.321691,1811.6,1811.3,7.72922]
[1743904961007,8.321691,1811.6,1811.4,3.86437]
[1743904961700,8.321691,1811.6,1811.3,7.72913]
[1743904962603,8.321691,1811.6,1811.4,3.86438]
[1743904964201,3.0,1811.6,1811.4,4.67166]
[1743904964370,10.23392,1811.8,1811.5,3.8642]
[1743904964571,3.0,1811.7,1811.6,3.86398]
[1743904965078,6.02,1811.8,1811.7,3.86377]
[1743904965272,6.02,1811.8,1811.7,4.67117]
[1743904965473,6.02,1811.8,1811.7,5.53020465]
[1743904966520,3.0,1812.1,1811.9,3.86325]
[1743904967486,10.95562,1812.2,1811.9,7.72644]
[1743904967688,10.95562,1812.2,1811.9,3.86319]
[1743904968006,10.95562,1812.2,1811.9,7.7264]
[1743904968217,12.492431,1812.2,1811.9,7.7264]
[1743904968909,3.0,1812.1,1811.9,7.7264]
[1743904969218,3.0,1812.1,1811.9,7.71930384]
[1743904969414,3.0,1812.1,1812.0,3.86313]
[1743904972116,3.4187712,1812.1,1812.0,3.86313]
[1743904972492,3.4187712,1812.1,1811.9,3.85609384]
[1743904972690,7.21392,1812.0,1811.9,3.85609384]
[1743904973102,3.0,1811.9,1811.8,3.8635]
[1743904979617,6.02,1811.9,1811.5,0.8302]
[1743904979807,4.21392,1811.6,1811.5,3.86419]
[1743904980018,7.21392,1811.6,1811.5,3.86419]
[1743904980332,7.21392,1811.6,1811.5,4.03686316]
[1743904980692,7.21392,1811.6,1811.5,3.86419]
[1743904981249,3.0,1811.6,1811.5,3.86419]
[1743904981400,3.0,1811.8,1811.7,3.86377]
[1743904981602,6.02,1811.9,1811.8,3.86356]
[1743904981802,4.21392,1812.2,1812.0,3.86313]
[1743904982015,6.02,1812.3,1812.1,3.86274]
[1743904982194,3.0,1812.2,1812.1,3.86274]
[1743904982395,4.21392,1812.5,1812.1,4.6355]
[1743904982600,4.21392,1812.5,1812.4,3.86228]
[1743904982798,4.0,1812.5,1812.4,3.86228]
[1743904983123,4.0,1812.5,1812.4,4.69168]
[1743904983526,3.0,1812.7,1812.4,4.69168]
[1743904983697,3.0,1812.7,1812.5,3.86206]
[1743904983900,4.21392,1812.8,1812.5,3.86195]
[1743904984229,4.21392,1812.7,1812.5,3.86195]
[1743904985147,4.21392,1812.7,1812.4,4.69166]
[1743904986543,4.21392,1812.7,1812.5,3.86202]
[1743904988740,4.21392,1812.7,1812.4,4.69166]
[1743904989046,4.635312,1812.7,1812.4,4.69166]
[1743904989427,4.21392,1812.5,1812.2,9.85109]
[1743904989609,4.21392,1812.3,1812.1,3.86291]
[1743904989936,4.21392,1812.3,1812.0,4.6925]
[1743904990500,4.21392,1812.1,1811.9,3.86331]
[1743904990821,4.635312,1812.1,1811.8,3.86354]
[1743904991131,8.498232,1812.1,1811.7,9.02671]
[1743904991506,8.498232,1812.1,1811.7,12.89033]
[1743904991507,4.635312,1812.1,1811.7,12.89033]
[1743904991709,4.635312,1812.1,1811.7,9.02662]
[1743904991911,4.635312,1812.1,1811.7,9.02661]
[1743904992116,0.4635312,1812.0,1811.7,12.8903]
[1743904992620,3.4635312,1812.0,1811.7,12.8903]
[1743904992827,3.4635312,1812.0,1811.7,9.02661]
[1743904995307,4.21392,1811.9,1811.7,5.163]
[1743904995713,4.21392,1811.9,1811.6,8.55721]
[1743904996321,4.21392,1811.9,1811.7,3.86371]
[1743904997947,4.21392,1811.9,1811.7,3.86365]
[1743905000049,4.21392,1811.9,1811.6,4.69324]
[1743905000251,4.21392,1811.7,1811.4,4.68056]
[1743905000543,4.21392,1811.7,1811.3,9.03058]
[1743905000913,4.21392,1811.7,1811.3,3.86458]
[1743905000914,8.07771,1811.7,1811.3,3.86458]
[1743905001141,0.55,1811.6,1811.3,3.86458]
[1743905001319,4.21392,1811.5,1811.3,0.17268186]
[1743905001711,4.21392,1811.5,1811.2,9.03065]
[1743905002647,4.21392,1811.5,1811.3,3.86461]
[1743905002807,5.55497714,1811.6,1811.3,3.86461]
[1743905005045,5.55497714,1811.6,1811.3,3.86447]
[1743905005244,4.83327714,1811.6,1811.3,3.86447]
[1743905005746,4.83327714,1811.6,1811.3,4.67267]
[1743905005947,4.83327714,1811.6,1811.4,3.86441]
[1743905007150,4.83327714,1811.6,1811.3,4.67267]
[1743905008943,4.83327714,1811.6,1811.4,3.86432]
[1743905012151,3.42050614,1811.6,1811.5,3.8642]
[1743905012553,3.0,1811.6,1811.5,3.8642]
[1743905012718,3.0,1811.6,1811.5,4.6724]
[1743905014950,3.0,1811.6,1811.5,3.8642]
[1743905016261,0.4215709,1811.7,1811.6,4.6673]
[1743905016262,3.0,1811.7,1811.6,4.6673]
[1743905019869,3.0,1811.7,1811.6,4.83996296]
[1743905023373,6.02,1811.8,1811.7,3.86377]
[1743905023574,3.0,1812.1,1811.9,4.69604]
[1743905026482,3.42213479,1812.1,1811.9,3.86321]
[1743905028285,3.0,1812.1,1811.9,3.86321]
[1743905028761,3.0,1812.1,1811.8,4.69625]
[1743905030285,3.0,1812.1,1811.8,4.69611]
[1743905030449,3.0,1812.1,1811.9,3.86323]
[1743905030655,3.0,1812.1,1811.9,7.72647]
[1743905030855,3.41914116,1812.1,1811.9,7.72647]
[1743905031387,3.41914116,1812.1,1811.9,3.86323]
[1743905031583,3.0,1812.1,1811.9,3.86319]
[1743905031776,3.0,1812.1,1812.0,3.86313]
[1743905033059,6.02,1812.2,1812.1,3.86292]
[1743905033259,10.78392,1812.4,1812.1,3.86292]
[1743905033590,3.0,1812.3,1812.1,3.86292]
[1743905034382,3.0,1812.3,1812.0,3.86313]
[1743905034587,3.0,1812.3,1812.0,3.86304]
[1743905035085,0.7217,1812.1,1811.8,3.86355]
[1743905036259,3.7217,1812.1,1811.8,3.86355]
[1743905036459,3.7217,1812.1,1811.9,3.86332]
[1743905038790,3.7217,1812.1,1811.8,3.86355]
[1743905039595,3.7217,1812.1,1811.8,7.72696]
[1743905039795,3.7217,1812.1,1811.9,3.86333]
[1743905040292,3.0,1812.1,1811.9,3.86333]
[1743905040893,3.0,1812.1,1811.9,3.86326]
[1743905041990,3.0,1812.1,1812.0,3.86313]
[1743905042294,3.0,1812.2,1812.1,3.86287]
[1743905043208,3.0,1812.2,1812.0,3.86313]
[1743905043406,4.21392,1812.1,1811.8,3.86353]
[1743905044811,7.27382023,1812.3,1811.9,4.65904]
[1743905044972,7.27382023,1812.3,1811.9,4.83167474]
[1743905045470,3.41131023,1812.3,1812.0,3.86312]
[1743905046302,3.41131023,1812.3,1812.0,7.72616]
[1743905046700,3.41131023,1812.3,1812.0,3.86304]
[1743905047305,7.27382023,1812.3,1812.0,3.86304]
[1743905047597,9.53799725,1812.3,1811.9,8.52233]
[1743905048090,9.53798725,1812.3,1812.0,3.86308]
[1743905048864,5.67548725,1812.3,1812.0,3.86308]
[1743905049096,5.67548725,1812.3,1812.0,7.72611]
[1743905050206,5.67548725,1812.3,1812.0,3.86303]
[1743905050400,5.67548725,1812.3,1812.0,7.72602]
[1743905050605,5.67548725,1812.3,1812.0,3.86299]
[1743905051102,5.67548725,1812.3,1811.9,4.65913]
[1743905051325,3.0,1812.1,1811.8,3.86355]
[1743905051507,3.0,1811.9,1811.6,9.01896]
[1743905052076,3.0,1811.9,1811.7,4.03641683]
[1743905052706,3.0,1811.9,1811.6,3.86389]
[1743905053474,3.7217,1811.9,1811.6,3.86389]
[1743905053679,3.7217,1811.9,1811.7,0.17265795]
[1743905054224,3.7217,1811.9,1811.6,3.86389]
[1743905055233,3.7217,1811.9,1811.7,0.17265762]
[1743905055730,3.7217,1811.9,1811.6,3.86389]
[1743905056928,3.7217,1811.9,1811.7,0.17266247]
[1743905057130,3.7217,1811.9,1811.6,3.86389]
[1743905057347,9.7417,1811.9,1811.6,3.86389]
[1743905057631,9.7417,1811.9,1811.6,7.72773]
[1743905057795,9.02,1811.9,1811.7,3.86376]
[1743905061912,6.02,1811.9,1811.8,4.67706]
[1743905062300,6.02,1811.9,1811.8,4.84970114]
[1743905063217,10.15301023,1812.3,1812.0,3.86307]
[1743905064926,3.0,1812.0,1811.8,5.152]
[1743905065138,8.621917,1812.0,1811.8,5.152]
[1743905066308,3.0,1812.1,1811.8,5.152]
[1743905067041,3.0,1812.1,1811.8,9.01546]
[1743905067840,3.0,1812.1,1811.8,12.87892]
[1743905068609,3.0,1812.1,1811.8,9.01546]
[1743905070114,3.0,1812.1,1811.9,3.86328]
[1743905070832,3.0,1812.1,1811.9,7.72653]
[1743905071361,3.0,1812.1,1812.0,3.86313]
[1743905071507,3.0,1812.1,1811.9,3.86329]
[1743905071949,3.0,1812.1,1811.9,7.72654]
[1743905072149,3.0,1812.1,1812.0,3.86313]
[1743905072515,4.21392,1812.2,1812.0,7.72626]
[1743905072714,4.21392,1812.2,1812.0,8.498886]
[1743905074250,3.0,1812.2,1812.0,8.498886]
[1743905079349,3.0,1812.2,1812.1,3.86292]
[1743905079654,3.0,1812.2,1812.1,4.67042]
[1743905080217,3.0,1812.2,1812.1,4.84303656]
[1743905080417,3.0,1812.2,1812.1,5.79091582]
[1743905080742,6.02,1812.5,1812.3,3.86249]
[1743905080943,0.7217,1812.8,1812.5,3.86191]
[1743905081144,10.23392,1812.9,1812.6,3.86184]
[1743905081526,3.0,1812.8,1812.6,3.86184]
[1743905083660,3.0,1812.8,1812.5,3.86191]
[1743905083954,3.0,1812.8,1812.5,3.86204]
[1743905084330,3.0,1812.8,1812.5,4.634471]
[1743905086162,3.0,1812.8,1812.5,8.496391]
[1743905086956,3.0,1812.8,1812.5,4.634351]
[1743905087141,3.0,1812.8,1812.5,3.86192]
[1743905089261,0.7217,1812.7,1812.4,3.86227]
[1743905089469,4.93562,1812.7,1812.4,3.86227]
[1743905090836,4.93562,1812.7,1812.4,7.72442]
[1743905091053,4.93562,1812.7,1812.3,3.86247]
[1743905091261,9.977075,1812.7,1812.3,3.86247]
[1743905091531,9.977075,1812.7,1812.3,7.72484]
[1743905091731,3.0,1812.8,1812.6,3.86184]
[1743905092332,3.0,1812.8,1812.5,3.86202]
[1743905092543,6.86145,1812.8,1812.4,4.64826]
[1743905092758,6.86145,1812.8,1812.4,8.51039]
[1743905093567,3.0,1812.8,1812.6,3.86181]
[1743905093763,3.0,1812.8,1812.5,3.86193]
[1743905095139,3.0,1812.8,1812.5,7.72389]
[1743905096675,3.0,1812.8,1812.5,3.86193]
[1743905098054,3.0,1812.8,1812.5,7.7239]
[1743905098675,3.0,1812.8,1812.5,3.86193]
[1743905099064,3.0,1812.8,1812.6,7.72355]
[1743905100344,3.0,1812.8,1812.6,3.86171]
[1743905105277,3.0,1812.8,1812.5,4.4119369]
[1743905105982,3.0,1812.8,1812.5,0.5498969]
[1743905106146,3.0,1812.8,1812.6,3.86172]
[1743905106347,3.0,1812.8,1812.7,0.8286]
[1743905106551,6.43925156,1812.9,1812.8,3.86142]
[1743905106957,9.02,1812.9,1812.8,3.86142]
[1743905108893,6.02,1813.4,1813.2,3.86057]
[1743905109083,4.0,1813.3,1813.2,3.86057]
[1743905110174,3.0,1813.4,1813.2,7.72104]
[1743905111186,6.42496545,1813.5,1813.3,3.86036]
[1743905114958,6.42496545,1813.5,1813.4,3.86015]
[1743905115158,4.31392,1813.6,1813.5,3.85993]
[1743905115159,0.1,1813.6,1813.5,3.85993]
[1743905115357,0.1,1813.6,1813.4,4.62359]
[1743905115558,0.1,1813.6,1813.5,3.85993]
[1743905117058,0.1,1813.6,1813.4,8.48365]
[1743905117258,0.1,1813.6,1813.5,3.85993]
[1743905117689,0.1,1813.6,1813.2,0.7642]
[1743905117906,4.21392,1813.3,1813.0,4.62519]
[1743905118202,8.79606,1813.3,1812.9,3.86121]
[1743905118386,4.58214,1813.3,1812.9,3.86121]
[1743905118693,4.21392,1813.1,1812.8,0.7642]
[1743905118882,4.21392,1812.9,1812.6,4.62587]
[1743905119077,4.21392,1812.9,1812.7,3.86156]
[1743905121297,1.14245654,1813.0,1812.7,3.86156]
[1743905121796,0.42075654,1813.0,1812.8,3.86142]
[1743905121993,4.2717,1813.2,1812.8,3.86125]
[1743905122197,4.2717,1813.2,1812.9,3.86121]
[1743905123762,3.7217,1813.2,1812.9,3.86121]
[1743905124081,3.0,1813.2,1812.9,3.86121]
[1743905124270,3.42217705,1813.2,1812.9,3.86121]
[1743905125220,0.42217705,1813.2,1813.0,3.86088]
[1743905125567,6.02,1813.4,1813.1,3.86079]
[1743905126216,0.1,1813.6,1813.3,4.63708]
[1743905126371,4.0,1813.4,1813.3,4.63708]
[1743905126875,0.1,1813.6,1813.3,8.49733]
[1743905126876,0.51269319,1813.6,1813.3,8.49733]
[1743905127064,0.1,1813.6,1813.3,9.347063]
[1743905127281,0.1,1813.6,1813.3,5.486783]
[1743905127521,3.95974,1813.6,1813.3,0.7768]
[1743905128666,3.95974,1813.6,1813.2,7.72098]
[1743905128667,3.95974,1813.6,1813.2,3.86042]
[1743905128868,3.86024,1813.4,1813.0,12.87077]
[1743905129491,9.34571,1813.5,1813.0,12.87077]
[1743905129892,10.25890011,1813.5,1813.0,12.87077]
[1743905130098,10.25890011,1813.5,1813.1,3.86074]
[1743905131337,10.25890011,1813.5,1813.2,3.86056]
[1743905131338,5.48562,1813.5,1813.2,3.86056]
[1743905131628,5.48562,1813.5,1813.1,3.86074]
[1743905131833,9.34556,1813.5,1813.1,7.72144]
[1743905132733,9.34556,1813.5,1813.1,3.8607]
[1743905135240,5.48562,1813.5,1813.2,3.86056]
[1743905135722,4.93562,1813.5,1813.3,3.86034]
[1743905135932,1.23509984,1813.6,1813.3,3.86034]
[1743905136812,4.23509984,1813.6,1813.3,3.86034]
[1743905137509,8.09483984,1813.6,1813.2,5.389666]
[1743905142449,4.23509984,1813.6,1813.3,3.86033]
[1743905144355,3.85994,1813.5,1813.2,4.632546]
[1743905144659,3.0,1813.4,1813.1,8.55233]
[1743905145333,3.0,1813.4,1813.2,3.86055]
[1743905147674,3.0,1813.4,1813.2,7.72099]
[1743905147822,3.0,1813.4,1813.2,3.86044]
[1743905150959,3.0,1813.4,1813.2,7.72088]
[1743905152464,3.0,1813.4,1813.2,3.86044]
[1743905155969,3.0,1813.4,1813.1,4.69166]
[1743905156265,3.0,1813.4,1813.2,3.86057]
[1743905159568,3.0,1813.4,1813.1,8.55232]
[1743905159736,3.0,1813.4,1813.2,3.86056]
[1743905159936,3.0,1813.4,1813.2,3.86055]
[1743905160359,3.0,1813.4,1813.1,6.061692]
[1743905160563,3.0,1813.4,1813.2,3.86057]
[1743905160756,3.0,1813.4,1813.2,4.03309177]
[1743905160956,3.0,1813.4,1813.2,3.86057]
[1743905161157,3.0,1813.4,1813.1,6.061692]
[1743905161359,3.0,1813.4,1813.2,3.86056]
[1743905162077,3.0,1813.4,1813.0,3.86099]
[1743905162078,4.93562,1813.3,1813.0,3.86099]
[1743905162372,4.93562,1813.3,1813.1,3.86078]
[1743905162558,4.93562,1813.3,1813.1,4.03331193]
[1743905162954,4.93562,1813.3,1813.1,3.86078]
[1743905163153,4.93562,1813.3,1812.9,3.8612]
[1743905163460,8.79601,1813.3,1812.9,3.8612]
[1743905163848,8.79601,1813.3,1813.0,0.17253213]
[1743905164059,10.472376,1813.3,1813.0,0.17253213]
[1743905164256,3.0,1813.2,1813.0,0.17253213]
[1743905164657,3.0,1813.2,1812.9,3.86106]
[1743905165471,3.0,1813.2,1812.8,0.7811]
[1743905165772,3.0,1813.2,1813.0,3.86092]
[1743905166270,3.0,1813.2,1813.1,0.17253164]
[1743905167571,3.0,1813.2,1813.0,3.86092]
[1743905167981,3.0,1813.2,1813.0,7.72177]
[1743905168475,3.0,1813.2,1813.0,3.86085]
[1743905169379,3.0,1813.2,1813.1,0.17253125]
[1743905169682,7.654332,1813.2,1812.7,3.86154]
[1743905169862,4.21392,1812.8,1812.5,3.86189]
[1743905170063,4.93562,1812.8,1812.6,0.17256754]
[1743905170578,4.93562,1812.8,1812.5,3.86189]
[1743905171484,4.93562,1812.8,1812.6,3.86185]
[1743905173986,4.93562,1812.8,1812.4,0.7924]
[1743905173987,6.13328235,1812.8,1812.4,7.72435]
[1743905174186,4.21392,1812.6,1812.4,3.86216]
[1743905175789,4.21392,1812.6,1812.4,7.72428]
[1743905175953,4.21392,1812.6,1812.4,3.86212]
[1743905176155,4.21392,1812.6,1812.4,7.72429]
[1743905176753,4.21392,1812.6,1812.4,3.86212]
[1743905177870,0.7217,1812.5,1812.4,3.86212]
[1743905178403,4.93562,1812.6,1812.4,3.86212]
[1743905179588,4.21392,1812.6,1812.4,3.86212]
[1743905179901,4.21392,1812.6,1812.5,3.86206]
[1743905182202,4.61802035,1812.8,1812.5,3.86196]
[1743905182366,4.61802035,1812.8,1812.6,3.86177]
[1743905182565,4.61802035,1812.8,1812.7,3.86164]
[1743905182788,0.40410035,1812.8,1812.7,4.63264]
[1743905183095,3.0,1812.9,1812.7,4.63264]
[1743905183764,3.0,1812.9,1812.8,3.86142]
[1743905186293,3.0,1812.9,1812.7,8.49414]
[1743905186463,3.0,1812.9,1812.7,3.8615]
[1743905186859,3.0,1812.9,1812.7,7.72301]
[1743905188495,3.0,1812.9,1812.7,3.8615]
[1743905188699,3.0,1812.9,1812.7,7.72304]
[1743905189101,3.0,1812.9,1812.7,3.8615]
[1743905190801,1.1320546,1813.0,1812.7,7.72301]
[1743905191302,1.1320546,1813.0,1812.7,3.8615]
[1743905191806,1.1320546,1813.0,1812.8,3.86142]
[1743905192105,0.4103546,1813.0,1812.8,3.86134]
[1743905192304,4.93562,1813.1,1812.8,3.86134]
[1743905192470,6.7966132,1813.1,1812.8,3.86134]
[1743905193505,6.7966132,1813.1,1812.8,7.72262]
[1743905193803,6.7966132,1813.1,1812.8,3.86128]
[1743905194111,7.21618115,1813.1,1812.8,3.86128]
[1743905194300,7.21618115,1813.1,1812.8,7.72257]
[1743905194767,7.21618115,1813.1,1812.9,3.86121]
[1743905196572,6.49448115,1813.1,1812.9,3.86121]
[1743905197600,4.63348795,1813.1,1812.9,3.86121]
[1743905199478,6.02,1813.2,1813.1,3.86079]
[1743905199709,6.7417,1813.5,1813.3,3.86036]
[1743905199901,6.02,1813.5,1813.3,3.86036]
[1743905200408,6.02,1813.5,1813.3,7.7206]
[1743905200611,6.02,1813.5,1813.4,3.86015]
[1743905200785,6.12,1813.6,1813.4,3.86015]
[1743905204020,6.53396331,1813.6,1813.4,3.86015]
[1743905207013,6.53396331,1813.6,1813.3,3.86024]
[1743905207218,10.39374331,1813.6,1813.2,3.86056]
[1743905207999,10.39374331,1813.6,1813.2,7.72098]
[1743905208591,6.53396331,1813.6,1813.3,3.86035]
[1743905210686,10.39369331,1813.6,1813.2,3.86042]
[1743905210887,10.39369331,1813.6,1813.2,7.72091]
[1743905211091,6.53396331,1813.6,1813.3,3.86034]
[1743905211825,6.53396331,1813.6,1813.3,3.86021]
[1743905212126,6.53396331,1813.6,1813.4,3.86015]
[1743905215132,6.53396331,1813.6,1813.3,3.86035]
[1743905215424,10.39375331,1813.6,1813.2,4.65267]
[1743905215623,4.58166,1813.5,1813.1,3.86077]
[1743905215817,4.93562,1813.5,1813.1,3.86066]
[1743905216016,4.93562,1813.5,1813.2,3.86043]
[1743905216316,6.53396331,1813.6,1813.3,3.86033]
[1743905217026,6.53396331,1813.6,1813.4,3.86009]
[1743905217529,6.53396331,1813.6,1813.4,7.72016]
[1743905218023,6.53396331,1813.6,1813.5,3.85993]
[1743905218732,6.53396331,1813.6,1813.4,3.86007]
[1743905219528,0.1,1813.6,1813.5,4.62813]
[1743905220405,0.1,1813.6,1813.4,3.7805]
[1743905222052,0.1,1813.6,1813.5,3.85993]
[1743905223952,0.1,1813.6,1813.5,4.68193]
[1743905224243,0.1,1813.6,1813.5,5.528173]
[1743905229559,0.1,1813.6,1813.5,5.70065472]
[1743905230414,0.1,1813.6,1813.5,4.706173]
[1743905230624,0.1,1813.6,1813.5,3.85993]
[1743905245102,0.1,1813.6,1813.4,7.64058]
[1743905245402,5.13166,1813.5,1813.1,8.99573]
[1743905245701,2.5251617,1813.4,1813.1,8.99573]
[1743905245906,2.5251617,1813.4,1813.2,0.17251641]
[1743905246203,3.29084387,1813.4,1813.2,0.17251641]
[1743905246403,3.29084387,1813.4,1813.1,3.86073]
[1743905247108,3.29084387,1813.4,1812.8,3.86142]
[1743905247109,2.5251617,1813.2,1812.8,3.86142]
[1743905247270,2.5251617,1813.0,1812.7,3.86158]
[1743905247469,2.5251617,1813.0,1812.8,0.17254691]
[1743905247776,8.79496608,1813.1,1812.7,3.86158]
[1743905248578,10.71754069,1813.1,1812.7,7.72307]
[1743905249402,11.1332966,1813.1,1812.7,7.72307]
[1743905249696,11.1332966,1813.1,1812.7,3.86149]
[1743905250101,11.1332966,1813.1,1812.7,7.72304]
[1743905250676,0.55,1813.0,1812.7,3.86149]
[1743905250867,0.7217,1812.9,1812.6,3.86183]
[1743905251396,0.7217,1812.9,1812.6,7.72354]
[1743905251970,0.7217,1812.9,1812.7,3.86149]
[1743905252166,7.2724066,1813.1,1812.8,3.86142]
[1743905252786,7.2724066,1813.1,1812.9,3.8612]
[1743905255022,0.41575591,1813.1,1813.0,3.861]
[1743905255318,6.02,1813.2,1813.0,3.861]
[1743905255669,6.02,1813.2,1812.9,3.8612]
[1743905256177,6.43000126,1813.2,1812.9,3.8612]
[1743905256379,1.2717,1813.1,1812.8,3.86141]
[1743905256683,6.64031421,1813.1,1812.8,3.86141]
[1743905258720,4.21237608,1812.9,1812.6,3.86185]
[1743905258883,8.79531608,1812.9,1812.6,3.86185]
[1743905259608,4.93407608,1812.9,1812.6,3.86185]
[1743905260705,4.93407608,1812.9,1812.6,7.72356]
[1743905261821,4.93407608,1812.9,1812.6,3.86171]
[1743905262026,5.81360269,1812.9,1812.6,3.86171]
[1743905263437,5.81360269,1812.9,1812.6,7.72346]
[1743905263621,5.81360269,1812.9,1812.6,3.86171]
[1743905264340,0.55,1812.8,1812.5,3.86206]
[1743905264544,6.57,1812.8,1812.5,3.86206]
[1743905264842,6.57,1812.8,1812.5,7.72412]
[1743905266540,6.57,1812.8,1812.5,3.86206]